Cogmind - Beta 9 @@@ ROGUE MODE // 2019.10.25 @ 11:37:12 Player: ModulinMyGlobulin Result: Destroyed by D-53 Grenadier with Mini Grenade Launcher Performance ------------- Evolutions (0) 0 Regions Visited (2) 400 Robots Destroyed (9) 45 Value Destroyed (195) 195 Prototype IDs (0) 0 Alien Tech Used (0) 0 Bonus (0) 0 TOTAL SCORE: 640 Bonus ------- None Cogmind --------- Core Integrity 0/250 Matter 141/300 Energy 265/265 System Corruption 2% Temperature Cool (0) Location -10/Mines Parts ------- Power (1) Reinforced Ion Engine Propulsion (2) Armored Wheel Utility (2) Small Storage Unit Small Storage Unit Weapon (2) Inventory (8) Reinforced Ion Engine Aluminum Leg Compact Wheel Armored Wheel Armored Wheel Shield Generator Grenade Launcher Peak State ------------ Power Reinforced Ion Engine Propulsion Armored Wheel Armored Wheel Utility Small Storage Unit Small Storage Unit Weapon Heavy Assault Rifle Heavy Assault Rifle Inventory Reinforced Ion Engine Aluminum Leg Compact Wheel Armored Wheel Armored Wheel Shield Generator Small Laser Grenade Launcher [Rating: 13] Favorites ----------- Power Reinforced Ion Engine Engine Reinforced Ion Engine Propulsion Armored Wheel Wheel Armored Wheel Utility Small Storage Unit Storage Small Storage Unit Weapon Heavy Assault Rifle Energy Gun Small Laser Ballistic Gun Heavy Assault Rifle Launcher Grenade Launcher Build | -11 -10 -10 ------- Run | Scr Mat Min Slots Evolved . | . . . Power . | . . . Propulsion . | . . . Utility . | . . . Weapon . | . . . Parts Attached 14 | 7 5 2 Power 2 | 1 1 . Engine 2 | 1 1 . Core . | . . . Reactor . | . . . Propulsion 4 | 2 2 . Treads . | . . . Leg . | . . . Wheel 4 | 2 2 . Hover . | . . . Flight . | . . . Utility 2 | 2 . . Device . | . . . Storage 2 | 2 . . Processor . | . . . Hackware . | . . . Protection . | . . . Artifact . | . . . Weapon 6 | 2 2 2 Energy Gun 1 | . . 1 Energy Cannon . | . . . Ballistic Gun 4 | 2 2 . Ballistic Cannon . | . . . Launcher 1 | . . 1 Special Weapon . | . . . Impact Weapon . | . . . Slashing Weapon . | . . . Piercing Weapon . | . . . Special Melee Weapon . | . . . Unidentified Prototypes . | . . . Parts Lost 4 | . . 4 Power . | . . . Propulsion 1 | . . 1 Utility . | . . . Weapon 3 | . . 3 Highest Loss Streak 3 | . . 3 Average Slot Usage (%) 96 | . 100 92 Engine 14 | . 14 14 Wheel 27 | . 28 26 Storage 28 | . 28 28 Ballistic Gun 22 | . 28 16 Launcher 2 | . . 5 Naked Turns . | . . . Heaviest Build 24 | 16 24 24 Greatest Support 24 | 20 24 24 Greatest Overweight (x) 3 | 3 1 1 Average Overweight (x) . | . . . Largest Inventory Capacity 8 | 8 8 8 Average Capacity 7 | 6 8 8 Most Carried 8 | 8 8 8 Average Carried 7 | 4 7 7 Final Capacity 8 | . . 8 Final Carried 7 | . . 7 Class Distribution -------------------- 100% | Mutant Dominant Class ---------------- Mutant | -10/Materials Mutant | -10/Mines Resources | -11 -10 -10 ----------- Run | Scr Mat Min Matter Collected 298 | 191 50 57 Remotely . | . . . Salvage Created 297 | 99 169 29 Parts 20 | 3 11 6 Haulers Intercepted . | . . . Recyclers Shooed . | . . . Parts Field Recycled . | . . . Retrieved Matter . | . . . Parts Self-Destructed . | . . . Prevented . | . . . Kills | -11 -10 -10 ------- Run | Scr Mat Min Combat Hostiles Destroyed 8 | . 4 4 Guns 4 | . 4 . AOE 4 | . . 4 Classes Destroyed 4 | 1 1 2 Recycler 1 | 1 . . Swarmer 3 | . . 3 Grunt 4 | . 4 . Assembled 1 | . . 1 Best Kill Streak 3 | 1 3 3 Combat Bots Only 3 | . 3 3 Max Kills in Single Turn 3 | 1 2 3 Gunslinging 1 | . 1 . Exploded 3 | . . 3 Melee . | . . . Uniques/NPCs Destroyed . | . . . Combat | -11 -10 -10 -------- Run | Scr Mat Min Damage Taken 923 | . 317 606 Core 263 | . 90 173 Absorbed by Shields . | . . . Core Remaining (%) 100 | 100 . . Volleys Fired 26 | 4 18 4 Largest 2 | 2 2 2 Hottest 63 | 40 43 63 Shots Fired 51 | 8 36 7 Gun 50 | 8 36 6 Cannon . | . . . Launcher 1 | . . 1 Special . | . . . Kinetic 48 | 8 36 4 Thermal 2 | . . 2 Explosive 1 | . . 1 Electromagnetic . | . . . Robot Hit Streak 11 | 3 11 1 Robot Miss Streak 5 | 1 3 5 Penetration Max . | . . . Secondary Targets 1 | . 1 . Max Gunslinging Chain 1 | . 1 . Shots Hit Robots 31 | 6 24 1 Core Hits 14 | 2 9 3 Critical Hits . | . . . Critical Kills . | . . . Critical Parts Destroyed . | . . . Melee Attacks . | . . . Impact . | . . . Slashing . | . . . Piercing . | . . . Sneak Attacks . | . . . Combat Hostiles . | . . . Follow-up Attacks . | . . . Damage Inflicted 446 | 70 269 107 Guns 339 | 70 269 . Cannons . | . . . Explosions 107 | . . 107 Melee . | . . . Ramming . | . . . Kinetic 339 | 70 269 . Thermal . | . . . Explosive 107 | . . 107 Electromagnetic . | . . . Impact . | . . . Slashing . | . . . Piercing . | . . . Highest Corruption 2 | . . 2 Average Corruption 2 | . . 2 Corruption Purged . | . . . Effects 1 | . . 1 Energy Discharges 1 | . . 1 Overload Shots . | . . . Overflow Damage . | . . . Projectiles . | . . . Explosions . | . . . Melee . | . . . Knockbacks . | . . . Impact . | . . . Kinetic . | . . . Secondary . | . . . Self-Inflicted Damage 40 | . . 40 Shots 1 | . . 1 Rammed 1 | . . 1 Targets Rammed 1 | . . 1 Kicked . | . . . Crushed . | . . . Highest Temperature 111 | . 111 30 Average Temperature 54 | . 61 17 Received Heat Transfer 174 | . 174 . Siege Activations . | . . . Robots Corrupted . | . . . Combat Hostiles . | . . . Parts Fried . | . . . Impact Corruptions . | . . . Robots Melted . | . . . Combat Hostiles . | . . . Parts Melted . | . . . Heat Transferred . | . . . Parts Sabotaged . | . . . Parts Stolen . | . . . Parts Stripped . | . . . Power Chain Reactions . | . . . Missiles Intercepted . | . . . Alert | -11 -10 -10 ------- Run | Scr Mat Min Peak Influence 123 | 5 123 107 Average Influence 49 | 1 49 71 Maximum Alert Level . | . . . Low Security (%) 100 | . . . Level 1 . | . . . Level 2 . | . . . Level 3 . | . . . Level 4 . | . . . Level 5 . | . . . High Security . | . . . Max Security . | . . . Squads Dispatched . | . . . Investigation . | . . . Extermination . | . . . Reinforcement . | . . . Assault . | . . . Garrison . | . . . Intercept . | . . . Construction Impeded . | . . . Haulers Reinforced . | . . . Stealth | -11 -10 -10 --------- Run | Scr Mat Min Distress Signals 2 | . 2 . Communications Jammed . | . . . Distress Signals . | . . . Times Spotted 32 | . 9 23 Peak Tracking Total 14 | . 6 14 Tactical Retreats 3 | . 1 2 Traps | -11 -10 -10 ------- Run | Scr Mat Min Traps Triggered . | . . . Indirectly . | . . . Trap Hack Attempts . | . . . Triggered . | . . . Disarmed . | . . . Reprogrammed . | . . . Reused . | . . . Traps Extracted . | . . . Installed . | . . . Triggered . | . . . Machines | -11 -10 -10 ---------- Run | Scr Mat Min Machines Disabled 1 | . 1 . Max in Single Turn 1 | . 1 . Machines Sabotaged . | . . . Garrisons Compromised . | . . . Overloaded Fab Kills . | . . . Fab Network Shutdowns . | . . . Hacking | -11 -10 -10 --------- Run | Scr Mat Min Machines Accessed 2 | . 2 . Terminals 2 | . 2 . Fabricators . | . . . Repair Stations . | . . . Recycling Units . | . . . Scanalyzers . | . . . Garrison Access . | . . . Total Hacks 4 | . 4 . Successful . | . . . Failed 4 | . 4 . Catastrophic 1 | . 1 . Database Lockouts . | . . . Manual . | . . . Terminals 4 | . 4 . Fabricators . | . . . Repair Stations . | . . . Recycling Units . | . . . Scanalyzers . | . . . Garrison Access . | . . . Terminal Hacks . | . . . Fabricator Hacks . | . . . Repair Station Hacks . | . . . Recycling Unit Hacks . | . . . Scanalyzer . | . . . Garrison Access Hacks . | . . . Unauthorized Hacks . | . . . Terminals . | . . . Fabricators . | . . . Repair Stations . | . . . Recycling Units . | . . . Scanalyzers . | . . . Garrison Access . | . . . Data Cores Recovered . | . . . Used . | . . . Hacking Detections 2 | . 2 . Full Trace Events . | . . . Feedback Events . | . . . Feedback Blocked . | . . . Robot Schematics Acquired . | . . . Robots Built . | . . . Matter . | . . . Time . | . . . Total Robot Build Rating . | . . . Part Schematics Acquired . | . . . Parts Built . | . . . Matter . | . . . Time . | . . . Total Part Build Rating . | . . . Parts Repaired . | . . . Time . | . . . Parts Recycled . | . . . Recycled Matter . | . . . Retrieved Matter . | . . . Retrieved Components . | . . . Parts Scanalyzed . | . . . Part Schematics Acquired . | . . . Parts Damaged . | . . . Bothacking | -11 -10 -10 ------------ Run | Scr Mat Min Used RIF Installer . | . . . Robots Hacked . | . . . Non-combat . | . . . Combat . | . . . Robot Hacks Applied . | . . . Relay Couplers Released . | . . . Robots Rewired . | . . . Allies Hacked . | . . . Hacks Repelled . | . . . Allies | -11 -10 -10 -------- Run | Scr Mat Min Total Allies . | . . . Largest Group . | . . . Highest-Rated Group . | . . . Highest-Rated Ally . | . . . Total Orders . | . . . Ally Attacks . | . . . Total Damage . | . . . Kills . | . . . Allies Corrupted . | . . . Allies Melted . | . . . Intel | -11 -10 -10 ------- Run | Scr Mat Min Robot Analysis Total . | . . . Derelict Logs Recovered 3 | . . 3 Drone Launches . | . . . Drone Recoveries . | . . . Exploration | -11 -10 -10 ------------- Run | Scr Mat Min Turns Passed 490 | 86 223 181 Spaces Moved 385 | 53 148 184 Core 19 | 19 . . Treads . | . . . Legs . | . . . Wheels 366 | 34 148 184 Hover . | . . . Flight . | . . . Fastest Speed 50 | 50 80 90 Average Speed 91 | 106 87 90 Slowest Speed 200 | 200 100 100 Overloaded Moves . | . . . Propulsion Burnouts . | . . . Robots Hopped . | . . . Cave-ins Triggered . | . . . Exploration Rate (%) 25 | 5 34 38 Regions Visited 2 Branch Regions 1 Pre-discovered Areas 2 | . . 2 Known Exits Taken . | . . . Unknown Exits Taken 2 | 1 1 . Scrap Searched 1 | . . 1 Spaces Dug . | . . . Terrain Destroyed 8 | . . 8 Melee . | . . . Projectile . | . . . AOE 8 | . . 8 Actions | -11 -10 -10 --------- Run | Scr Mat Min Total 469 | 71 207 191 Wait 22 | . 22 . Move 383 | 52 147 184 Hop . | . . . Pick Up 13 | 8 5 . Fast Attach 12 | 7 5 . Attach 1 | . . 1 Detach . | . . . Swap 1 | . . 1 Drop 10 | . 10 . Fire 26 | 4 18 4 Melee . | . . . Ram 1 | . . 1 Kick . | . . . Crush . | . . . Escape Stasis . | . . . Rewire . | . . . Trap . | . . . Miscellaneous . | . . . Route ------- -11/Scrapyard -10/Materials -10/Mines History --------- Turn | Location | Event 20 | -11/Scrapyard | Discovered new exit (range 15) 87 | -11/Scrapyard | Entered Materials 295 | -10/Materials | Discovered new exit (range 15) 310 | -10/Materials | Entered Mines 313 | -10/Mines | Build established: Mutant 318 | -10/Mines | Learned location of Storage (-7) 339 | -10/Mines | Assembled infested the area 344 | -10/Mines | Assisted by a Guerilla fighting off Assembled 364 | -10/Mines | Found a hidden stash of uninstalled traps 365 | -10/Mines | Core integrity fell below 50% 398 | -10/Mines | Learned Materials security intel 402 | -10/Mines | Met a Derelict bent on vengeance 484 | -10/Mines | Core integrity fell below 20% 491 | -10/Mines | Destroyed by D-53 Grenadier with Mini Grenade Launcher Last Messages --------------- 00359_ Hvy. Assault Rifle destroyed. 00363_ The unstable cave ceiling collapses. 00364_ A stash of uninstalled traps is hidden here! 00364_ HV Slug penetrates as-41493. 00364_ as-41493 suffers critical hit. 00365_ DM-DPN(h) system corrupted by crushing effect. 00365_ DM-DPN(h) destroyed. 00369_ as-63416 destroyed. 00373_ Slammed into T-07 Excavator. 00373_ Destabilizing: System corrupted (+2). 00379_ System corrupted: Energy discharge (-76). 00398_ Acquired derelict log, extracted data. Data stored: Materials security intel. 00405_ S-10 Pest destroyed. 00408_ Acquired 10 matter. 00409_ Acquired 11 matter. 00479_ Arm. Wheel destroyed. 00483_ Sml. Laser destroyed. 00483_ Hvy. Assault Rifle destroyed. 00484_ The unstable cave ceiling collapses. Map ----- +----------------------------------------------------+ | ?????????????????????????????????????????????????? | | ??????????????????????????????????#####??????????? | | ?????????????????????????????????? #?????????? | | ???###????????????????????????????? ####?????? | | ??## ##??????????????????????????? """ ##????? | | ??# ##???????????????????????? ? """ #????? | | ??# #????????????????????????# """ #????? | | ?## #??????????????????????????? ##???? | | ## #???????????????????????????????# #???? | | # ##????????????????????????????????# #???? | | #?????????????????????????????????# #???? | | ####??????????????????????????????## ##???? | | #???????????????????????????????# ###????? | | #???????????????????????????????# #??????? | | ##??????????????????????????????# ######## | | #??????????????????????????????# | | # ##???####??????????????????????# | | ## ##### ##?????????????????????######## | | ?##### ####?????????????????????????# | | ?????## ##???##???????????????????## | | ??????# #### #????????????????????# | | ??????# # # ##???????????????????# | | ??????# ## # #???????????????????# | | ?????## #### #???????????????????# | | ??#### #??# d #???????????????????# | | ?## #??## @ ##??????????????????# | | ?# ##???## ### #??????????????????# | | ?# #?????## #?# #??????????????????# | | ?# ##?????### ##### ##############?????# | | ?## ## ##?###??#####??# #?????# | | ??##?## ## ##???????# ########### #???### | | ??????# ##?????# ##?????????# ##### | | ??????# ##????# ###??????????# # | | ??????# #????## ##????????????####### # | | ??????## #?????###????????????????????# # | | ???????#### ##????????????????????????????# ## | | ??????????#######?????????????????????????????# #? | | ??????????????????????????????????????????????# # | | ???????????????????????????????### ?????????# | | ???????????????????????????????? ????###% | | ??????????????????????????????? ### | | ??????????????????????????????? %| | | ??????????????????????????????? ####=% | | ????????????????????????????????? ??????# *# | | ??????????????????????????????????????????# %## | | ????????????????????????????????????????? % ## | | ???????????????????????????????????????? ?## | | ??????????????????????????????????????? %??# | | ??????????????????????????????????????# #??? | | ??????????????????????????????????????## % #??? | +----------------------------------------------------+ Best States ------------- Heat Dissipation 25 Energy Generation 12 Energy Capacity 265 Matter Stores 205 Matter Capacity 300 Sight Range 16 Terrain Scan Density 10 Evasion (%) 44 Item Schematics ----------------- None Robot Schematics ------------------ None Fabricated ------------ Nothing Alien Tech Used ----------------- None Achievements -------------- None Challenges ------------ None Game ------ Seed ChainPrecisionFilter Manual? 0 Play Time 00:10:24 Cumulative 40.9 hours Start 2019.10.25 @ 11:21:43 End 2019.10.25 @ 11:37:12 Sessions 3 Manual Loads 0 Difficulty Rogue Special Mode None Game No. 110 Rogue 110 Adventurer 0 Explorer 0 Win Type - Total 0 Types 0/0/0/0/0/0/0 Lore% 34 Gallery% 36 Achievement% 17 Wizard Run 0 Options --------- ASCII 0 Keyboard 0 Movement Numpad Keybinds 0 Fullscreen 1 Font 18/SmallcapsGlow Map View 76x50 Tactical HUD 1 Map Filters NONE Filters NONE Steam 1 RUN: 0a657648-2fb9-48ff-b328-64f380d53fa6